bitfinex/quotes_ETHUSD_20230831
["timestamp","ask_amount","ask_price","bid_price","bid_amount"]
[1693478626768,7.07829,1706.4,1706.2,0.43797383]
[1693478627319,7.07829,1706.4,1706.1,10.43868]
[1693478627481,7.07829,1706.4,1706.3,0.43785439]
[1693478627864,7.07829,1706.4,1706.1,10.43868]
[1693478631921,1.218,1706.2,1706.1,10.43868]
[1693478632119,1.218,1706.2,1706.1,11.45731807]
[1693478632488,1.218,1706.2,1706.1,9.87981807]
[1693478636129,1.218,1706.2,1706.1,15.74113807]
[1693478637832,1.218,1706.2,1706.1,16.35647195]
[1693478640928,1.218,1706.2,1706.1,10.49515195]
[1693478642337,1.218,1706.2,1706.1,10.93340896]
[1693478644319,1.218,1706.2,1706.1,16.79472896]
[1693478644821,1.218,1706.2,1706.1,10.93340896]
[1693478653462,1.218,1706.2,1706.1,16.79472896]
[1693478662987,1.218,1706.3,1706.1,16.79472896]
[1693478663145,1.218,1706.3,1706.2,1.01863807]
[1693478663346,1.218,1706.3,1706.2,6.87960807]
[1693478663540,1.218,1706.3,1706.2,7.31774562]
[1693478664152,1.218,1706.4,1706.2,9.58330357]
[1693478664357,1.218,1706.4,1706.2,8.5646655]
[1693478664559,1.218,1706.4,1706.2,11.3372655]
[1693478667161,1.218,1706.4,1706.2,9.07170755]
[1693478685000,1.218,1706.3,1706.2,9.07170755]
[1693478685206,1.218,1706.3,1706.2,10.09032124]
[1693478685519,1.218,1706.3,1706.2,1.45675124]
[1693478701432,1.218,1706.3,1706.2,7.31772124]
[1693478716938,1.218,1706.3,1706.2,6.29910755]
[1693478717147,1.218,1706.3,1706.2,7.3177155]
[1693478731338,1.218,1706.4,1706.2,7.3177155]
[1693478731541,1.218,1706.4,1706.2,6.29910755]
[1693478731764,1.218,1706.4,1706.2,8.84390755]
[1693478733035,1.218,1706.4,1706.2,9.05300954]
[1693478738180,1.218,1706.4,1706.2,16.93076843]
[1693478754595,1.218,1706.4,1706.2,14.91397954]
[1693478754767,1.218,1706.4,1706.2,3.19203954]
[1693478754968,1.218,1706.3,1706.2,3.19203954]
[1693478755276,1.218,1706.3,1706.2,4.21064751]
[1693478755489,1.218,1706.3,1706.2,1.66584751]
[1693478759524,36.97779587,1706.8,1706.2,1.66584751]
[1693478759676,9.57126024,1706.7,1706.2,0.64723954]
[1693478759881,1.218,1706.3,1706.2,0.64723954]
[1693478760118,1.218,1706.3,1706.2,1.22771457]
[1693478760414,1.218,1706.3,1706.2,1.01861258]
[1693478760627,1.218,1706.3,1706.2,1.66612115]
[1693478773728,1.218,1706.3,1706.2,1.66612128]
[1693478775395,1.218,1706.3,1706.2,7.52709128]
[1693478798363,1.218,1706.3,1706.2,1.66612128]
[1693478798781,1.218,1706.3,1706.2,4.56612128]
[1693478824403,1.218,1706.3,1706.2,10.42709128]
[1693478830413,1.218,1706.3,1706.2,10.42709365]
[1693478858642,1.218,1706.3,1706.2,7.52709365]
[1693478893885,1.218,1706.3,1706.2,10.42709365]
[1693478901719,5.2118884,1706.4,1706.2,10.42709365]
[1693478901892,1.218,1706.3,1706.2,9.40847857]
[1693478902214,1.218,1706.3,1706.2,10.42709424]
[1693478913255,6.4298884,1706.4,1706.2,10.42709424]
[1693478913462,6.4298884,1706.4,1706.2,9.40847857]
[1693478914858,6.4298884,1706.4,1706.2,6.50847857]
[1693478926078,6.4298884,1706.4,1706.2,9.23187857]
[1693478926873,6.4298884,1706.4,1706.2,12.13187857]
[1693478936880,1.218,1706.4,1706.2,12.13187857]
[1693478940484,1.218,1706.4,1706.2,11.48437]
[1693478940689,1.218,1706.4,1706.3,0.6474605]
[1693478953330,1.218,1706.4,1706.3,0.5974605]
[1693478953622,2.511836,1706.4,1706.3,0.5974605]
[1693478961431,2.511836,1706.4,1706.3,0.5474605]
[1693478968533,2.511836,1706.4,1706.3,0.4974605]
[1693478968738,2.511836,1706.4,1706.3,0.63292287]
[1693479032838,2.511836,1706.4,1706.3,0.79717509]
[1693479053399,1.218,1706.4,1706.3,0.79717509]
[1693479118435,7.07808,1706.5,1706.3,0.79717509]
[1693479129278,7.07808,1706.5,1706.3,6.65780509]
[1693479129877,7.07808,1706.5,1706.3,0.79717509]
[1693479148676,7.07808,1706.5,1706.3,0.62467897]
[1693479176768,1.218,1706.4,1706.3,0.62467897]
[1693479177140,7.07829,1706.4,1706.3,0.62467897]
[1693479177341,8.493927,1706.4,1706.3,0.62467897]
[1693479177555,14.354217,1706.4,1706.3,0.62467897]
[1693479177756,21.44638221,1706.4,1706.3,0.62467897]
[1693479183899,20.214507,1706.4,1706.3,0.62467897]
[1693479194284,14.354217,1706.4,1706.3,0.62467897]
[1693479194489,12.93858,1706.4,1706.3,0.62467897]
[1693479199927,7.07829,1706.4,1706.3,0.62467897]
[1693479206630,1.218,1706.4,1706.3,0.62467897]
[1693479206798,1.218,1706.4,1706.3,6.48530897]
[1693479207127,1.218,1706.4,1706.3,0.62467897]
[1693479212950,1.218,1706.4,1706.3,0.46042675]
[1693479213154,1.218,1706.4,1706.3,0.73201662]
[1693479299672,2.75679187,1706.4,1706.3,0.73201662]
[1693479307887,1.218,1706.4,1706.3,0.73201662]
[1693479328633,1.218,1706.4,1706.3,0.27158987]
[1693479329135,1.218,1706.4,1706.3,0.72887461]
[1693479333416,1.218,1706.5,1706.3,18.31076461]
[1693479333613,1.218,1706.6,1706.3,18.31076461]
[1693479333948,1.218,1706.6,1706.4,1.83107646]
[1693479334237,1.218,1706.6,1706.4,7.69119646]
[1693479334434,1.218,1706.6,1706.4,10.36009646]
[1693479334639,1.218,1706.6,1706.5,0.84852]
[1693479335210,1.218,1706.6,1706.5,2.38858336]
[1693479341357,1.218,1706.6,1706.5,0.84852]
[1693479363732,1.218,1706.6,1706.5,6.70846]
[1693479371219,1.218,1706.6,1706.5,12.5684]
[1693479385084,1.218,1706.6,1706.5,6.70846]
[1693479420151,1.218,1706.6,1706.5,12.5684]
[1693479420356,2.44956301,1706.7,1706.5,20.538068]
[1693479422560,1.218,1706.7,1706.5,20.538068]
[1693479433376,1.218,1706.6,1706.5,20.538068]
[1693479443379,1.218,1706.7,1706.5,20.538068]
[1693479443679,1.218,1706.7,1706.5,18.42834]
[1693479448421,1.218,1706.6,1706.5,18.42834]
[1693479468645,1.218,1706.7,1706.5,18.42834]
[1693479491934,2.44902599,1706.8,1706.5,18.42834]
[1693479496390,2.44921773,1706.8,1706.5,18.42834]
[1693479497624,1.218,1706.8,1706.5,18.42834]
[1693479505831,2.44921773,1706.8,1706.5,18.42834]
[1693479508231,1.218,1706.8,1706.5,18.42834]
[1693479509821,2.44921773,1706.8,1706.5,18.42834]
[1693479510934,2.44921773,1706.8,1706.5,20.19514]
[1693479511135,2.44921773,1706.8,1706.6,2.019514]
[1693479511443,2.44921773,1706.8,1706.7,11.71852]
[1693479512349,2.44921773,1706.8,1706.7,12.56569011]
[1693479513212,1.218,1706.8,1706.7,12.56569011]
[1693479528388,2.44921773,1706.9,1706.7,12.56569011]
[1693479529683,1.218,1706.9,1706.7,12.56569011]
[1693479541597,1.68330884,1706.9,1706.7,12.56569011]
[1693479542907,1.218,1706.9,1706.7,12.56569011]
[1693479543503,1.218,1706.8,1706.7,12.56569011]
[1693479561727,1.218,1706.8,1706.7,18.42495011]
[1693479583565,2.44921773,1706.9,1706.7,18.42495011]
[1693479583765,1.218,1706.8,1706.7,18.42495011]
[1693479595468,1.218,1706.9,1706.7,18.42495011]
[1693479600683,1.218,1706.9,1706.7,21.10794812]
[1693479604041,6.23122342,1707.0,1706.7,21.10794812]
[1693479604885,6.23122342,1707.0,1706.7,22.81834812]
[1693479608836,9.13122342,1707.0,1706.7,22.81834812]
[1693479618752,1.218,1706.9,1706.7,22.81834812]
[1693479619252,1.218,1706.9,1706.7,21.10794812]
[1693479619422,1.218,1706.9,1706.7,18.42495011]
[1693479708549,10.34947263,1707.0,1706.7,18.42495011]
[1693479716682,9.118,1707.0,1706.7,18.42495011]
[1693479723516,1.218,1706.9,1706.7,18.42495011]
[1693479736000,9.118,1707.0,1706.7,18.42495011]
[1693479736200,9.118,1707.0,1706.8,1.84249501]
[1693479736429,9.118,1707.0,1706.9,11.71714]
[1693479736729,9.118,1707.0,1706.9,12.53521509]
[1693479751735,7.9,1707.0,1706.9,18.39378509]
[1693479800659,7.9,1707.0,1706.9,19.41188997]
[1693479801158,7.9,1707.0,1706.9,18.39378509]
[1693479801332,7.9,1707.0,1706.9,19.41189018]
[1693479808380,7.9,1707.0,1706.9,22.28537083]
[1693479815802,7.9,1707.0,1706.9,25.28537083]
[1693479816006,7.9,1707.0,1706.9,26.81285877]
[1693479819227,7.9,1707.0,1706.9,27.42829394]
[1693479832464,7.9,1707.0,1706.9,27.90829394]
[1693479833250,2.44947263,1707.5,1707.1,3.0]
[1693479833436,2.44947263,1707.5,1707.2,28.86666065]
[1693479833636,2.44947263,1707.5,1707.2,29.6571533]
[1693479839805,1.218,1707.5,1707.2,29.6571533]
[1693479839970,2.44947263,1707.5,1707.2,29.6571533]
[1693479840178,1.218,1707.5,1707.2,29.6571533]
[1693479845315,4.118,1707.5,1707.2,29.6571533]
[1693479845615,4.118,1707.5,1707.2,30.13514882]
[1693479847017,1.218,1707.5,1707.2,30.13514882]
[1693479847809,1.218,1707.5,1707.2,27.57184882]
[1693479848275,1.218,1707.5,1707.2,30.17264882]
[1693479853630,3.96747263,1707.6,1707.2,30.17264882]
[1693479858434,2.736,1707.6,1707.2,30.17264882]
[1693479860338,2.736,1707.6,1707.2,31.81554882]
[1693479860854,3.96747263,1707.6,1707.2,31.81554882]
[1693479863057,2.736,1707.6,1707.2,31.81554882]
[1693479863607,1.218,1707.5,1707.2,31.81554882]
[1693479864208,1.218,1707.5,1707.2,27.57184882]
[1693479864538,2.736,1707.6,1707.2,30.27154882]
[1693479865253,2.736,1707.6,1707.2,31.97564882]
[1693479865617,1.218,1707.6,1707.2,31.97564882]
[1693479867198,1.218,1707.6,1707.3,3.0]
[1693479867356,1.218,1707.6,1707.4,17.57055]
[1693479867564,1.218,1707.6,1707.4,18.3607569]
[1693479872898,1.218,1707.5,1707.4,18.3607569]
[1693479879208,1.218,1707.6,1707.4,18.3607569]
[1693479883872,5.61040371,1707.7,1707.4,18.3607569]
[1693479884074,1.23022387,1707.6,1707.4,18.3607569]
[1693479886187,5.61040371,1707.7,1707.4,18.3607569]
[1693479886638,1.218,1707.6,1707.4,18.3607569]
[1693479886938,5.61040371,1707.7,1707.4,18.3607569]
[1693479887138,5.61040371,1707.7,1707.4,20.9578569]
[1693479887314,4.07262387,1707.7,1707.4,20.9578569]
[1693479891654,5.61040371,1707.7,1707.4,20.9578569]
[1693479893630,1.218,1707.6,1707.4,20.9578569]
[1693479905263,1.218,1707.6,1707.4,3.3873069]
[1693479905461,1.218,1707.6,1707.4,20.9578569]
[1693479911739,1.218,1707.6,1707.4,3.3873069]
[1693479912035,1.218,1707.6,1707.4,15.1010069]
[1693479912189,1.218,1707.6,1707.4,22.94362759]
[1693479913741,4.07262387,1707.7,1707.4,22.94362759]
[1693479914191,4.07262387,1707.7,1707.4,24.66542759]
[1693479917368,2.44822387,1707.7,1707.4,24.66542759]
[1693479918361,1.23022387,1707.7,1707.4,25.81710824]
[1693479918654,4.01472387,1707.8,1707.5,1.38536913]
[1693479918808,4.01472387,1707.8,1707.6,5.85617]
[1693479919153,2.44822387,1707.8,1707.6,6.64609122]
[1693479921458,2.44822387,1707.8,1707.6,12.50226122]
[1693479924557,2.44822387,1707.8,1707.6,6.64609122]
[1693479931258,2.44822387,1707.8,1707.6,12.50226122]
[1693479931452,2.44822387,1707.8,1707.6,9.24699122]
[1693479931859,2.92599747,1707.8,1707.6,9.24699122]
[1693479932061,2.92599747,1707.8,1707.7,0.00829807]
[1693479932431,2.92599747,1707.8,1707.7,0.79807648]
[1693479934870,2.92558448,1707.8,1707.7,0.79807648]
[1693479942487,2.92558448,1707.8,1707.7,6.65389648]
[1693479942685,1.218,1707.8,1707.7,6.65389648]
[1693479942847,2.44781088,1707.8,1707.7,6.65389648]
[1693479943045,1.218,1707.8,1707.7,6.65389648]
[1693479944585,1.218,1707.8,1707.7,7.08730456]
[1693479955997,1.218,1707.8,1707.7,1.23148456]
[1693479956298,1.218,1707.8,1707.7,7.08730456]
[1693479964909,1.218,1707.8,1707.7,12.94312456]
[1693479968011,1.218,1707.8,1707.7,7.08730456]
[1693479986042,2.44831992,1707.8,1707.7,7.08730456]
[1693479986350,1.218,1707.8,1707.7,7.08730456]
[1693479986532,2.4484825,1707.8,1707.7,7.08730456]
[1693479995656,2.4484825,1707.8,1707.7,1.23148456]
[1693479995859,2.4484825,1707.8,1707.7,7.08730456]
[1693480013090,1.218,1707.8,1707.7,7.08730456]
[1693480017225,1.218,1707.8,1707.7,1.23148456]
[1693480038441,1.218,1707.8,1707.7,7.08730456]
[1693480053568,2.5494825,1707.9,1707.7,7.08730456]
[1693480063671,1.218,1707.8,1707.7,7.08730456]
[1693480064888,2.5494825,1707.9,1707.7,7.08730456]
[1693480068711,1.218,1707.8,1707.7,7.08730456]
[1693480069523,2.5494825,1707.9,1707.7,7.08730456]
[1693480069676,1.218,1707.8,1707.7,7.08730456]
[1693480070720,1.218,1707.8,1707.7,12.94312456]
[1693480075930,1.218,1707.8,1707.7,7.08730456]
[1693480097594,1.218,1707.8,1707.7,1.23148456]
[1693480097595,2.4484825,1707.8,1707.7,1.23148456]
[1693480097823,2.85724106,1707.8,1707.7,1.23148456]
[1693480104711,1.62675856,1707.8,1707.7,1.23148456]
[1693480112188,1.62675856,1707.8,1707.7,1.22318649]
[1693480112473,1.62675856,1707.8,1707.7,0.43340808]
[1693480112681,13.33771856,1707.8,1707.7,0.43340808]
[1693480112848,14.87582169,1707.8,1707.3,5.85699]
[1693480113041,1.218,1707.4,1707.2,15.98345]
[1693480113241,1.218,1707.3,1707.2,15.98345]
[1693480113477,1.218,1707.3,1707.2,18.31766939]
[1693480114172,1.218,1707.4,1707.2,24.18194507]
[1693480114388,1.218,1707.4,1707.2,23.16402568]
[1693480117777,1.218,1707.5,1707.2,23.16402568]
[1693480118068,1.218,1707.5,1707.2,24.84502568]
[1693480124697,1.218,1707.5,1707.3,1.15115022]
[1693480124999,1.218,1707.5,1707.4,5.8635762]
[1693480131202,1.218,1707.6,1707.4,11.7204262]
[1693480131708,1.218,1707.6,1707.4,14.3221262]
[1693480139811,1.218,1707.6,1707.5,1.15081373]
[1693480141013,1.218,1707.6,1707.5,1.1575326]
[1693480159109,2.44823457,1707.8,1707.5,14.59408586]
[1693480159933,2.44823457,1707.8,1707.5,12.8705526]
[1693480160131,1.218,1707.7,1707.5,12.8705526]
[1693480164088,1.218,1707.7,1707.5,7.0140426]
[1693480164327,1.218,1707.6,1707.5,7.0140426]
[1693480175349,1.218,1707.7,1707.5,7.0140426]
[1693480183745,2.44823457,1707.8,1707.5,15.00346086]
[1693480186029,2.44823457,1707.8,1707.5,16.65116086]
[1693480192254,2.44823457,1707.8,1707.5,14.5182526]
[1693480192613,2.44823457,1707.8,1707.5,12.8705526]
[1693480193723,2.44823457,1707.8,1707.5,14.5644526]
[1693480201160,2.44823457,1707.8,1707.5,20.4209626]
[1693480205886,1.218,1707.7,1707.5,14.5644526]
[1693480206058,1.218,1707.7,1707.5,12.8705526]
[1693480207271,1.218,1707.6,1707.5,1.1575326]
[1693480210877,1.218,1707.6,1707.5,7.0140426]
[1693480213697,1.218,1707.7,1707.5,7.0140426]
[1693480214398,2.21039246,1707.7,1707.5,7.0140426]
[1693480220096,1.218,1707.7,1707.5,7.0140426]
[1693480232012,1.218,1707.7,1707.5,7.01778401]
[1693480232514,1.218,1707.7,1707.5,7.30685349]
[1693480249945,1.218,1707.7,1707.5,13.16336349]
[1693480250627,2.44887641,1707.8,1707.5,13.16336349]
[1693480251002,2.44887641,1707.8,1707.5,15.49678984]
[1693480251531,2.44887641,1707.8,1707.5,17.17588984]
[1693480253575,2.44887641,1707.8,1707.5,23.03239984]
[1693480257567,2.44887641,1707.8,1707.5,14.84246349]
[1693480257939,2.44887641,1707.8,1707.5,13.16336349]
[1693480282781,2.44887641,1707.8,1707.5,14.88336349]
[1693480303250,2.44887641,1707.8,1707.5,13.16336349]
[1693480317268,2.44887641,1707.8,1707.5,14.78576349]
[1693480317457,2.44887641,1707.8,1707.5,17.11018684]
[1693480319778,2.44887641,1707.8,1707.5,15.95937311]
[1693480320167,2.44887641,1707.8,1707.5,17.1080248]
[1693480320977,2.44887641,1707.8,1707.5,17.10130593]
[1693480321184,1.23087641,1707.8,1707.5,25.83129658]
[1693480321376,1.63958478,1707.9,1707.6,1.04671647]
[1693480321678,1.23086783,1707.8,1707.7,11.71164]
[1693480322056,1.23086783,1707.8,1707.7,11.72207988]
[1693480322862,2.54986783,1707.9,1707.7,11.72207988]
[1693480325476,2.54986783,1707.9,1707.7,14.02355452]
[1693480325680,0.101,1707.9,1707.7,14.02355452]
[1693480332286,0.101,1707.9,1707.7,19.87937452]
[1693480334481,0.101,1707.9,1707.8,1.43733619]
[1693480334687,0.101,1707.9,1707.8,7.29281619]
[1693480335090,0.101,1707.9,1707.8,7.30324566]
[1693480346013,0.101,1707.9,1707.8,13.15872566]
[1693480356715,0.101,1707.9,1707.8,19.01420566]
[1693480363315,0.101,1707.9,1707.8,20.08387084]
[1693480363948,0.101,1707.9,1707.8,25.95735149]
[1693480364151,0.101,1708.3,1708.0,3.0]
[1693480364352,0.101,1708.3,1708.1,30.78867755]
[1693480364648,0.101,1708.3,1708.1,31.16551424]
[1693480364850,0.101,1708.3,1708.2,21.57963033]
[1693480365019,0.101,1708.3,1708.2,27.94312591]
[1693480365213,0.101,1708.3,1708.2,29.01279109]
[1693480365750,0.101,1708.3,1708.2,29.24708509]
[1693480366555,0.101,1708.3,1708.2,29.86028799]
[1693480366755,0.101,1708.3,1708.2,29.24708509]
[1693480367622,0.101,1708.4,1708.2,29.86028799]
[1693480367822,0.101,1708.4,1708.3,26.65994748]
[1693480369055,0.101,1708.4,1708.3,26.66993788]
[1693480369257,0.101,1708.4,1708.3,26.56993788]
[1693480371455,0.101,1708.4,1708.3,26.56989723]
[1693480373675,0.101,1708.5,1708.3,26.08989723]
[1693480373863,0.101,1708.5,1708.4,1.06966518]
[1693480374069,0.101,1708.5,1708.4,21.5130555]
[1693480374277,0.101,1708.5,1708.4,24.5130555]
[1693480378780,0.101,1708.6,1708.4,29.14088067]
[1693480378988,0.101,1708.6,1708.5,6.89073785]
[1693480379280,0.101,1708.6,1708.5,26.17783435]
[1693480379769,0.101,1708.6,1708.5,27.52908575]
[1693480380080,0.101,1708.6,1708.5,27.53869783]
[1693480380453,0.101,1708.6,1708.5,29.0645892]
[1693480380775,0.101,1708.6,1708.5,27.53869783]
[1693480381279,12.22621339,1709.2,1708.5,27.53869783]
[1693480381280,0.101,1709.3,1709.0,23.4052]
[1693480381452,0.101,1709.3,1709.2,17.55207]
[1693480381957,1.319,1709.3,1709.2,17.55207]
[1693480382171,0.101,1709.3,1709.2,20.42555065]
[1693480382368,0.101,1709.3,1709.2,17.55207]
[1693480384184,0.101,1709.3,1709.2,17.56161945]
[1693480384989,1.319,1709.3,1709.2,17.56161945]
[1693480391102,1.319,1709.3,1709.2,5.86023945]
[1693480391304,2.046012,1709.3,1709.2,0.00954945]
[1693480391475,2.046012,1709.3,1709.2,5.86023945]
[1693480394676,2.046012,1709.3,1709.2,7.16998212]
[1693480395203,7.896352,1709.3,1709.2,1.31929212]
[1693480397316,1.319,1709.3,1709.2,21.74484277]
[1693480397608,0.101,1709.3,1709.2,18.87136212]
[1693480399314,0.101,1709.4,1709.2,21.74484277]
[1693480399699,0.101,1709.4,1709.2,24.35104277]
[1693480403828,0.101,1709.4,1709.3,2.87348065]
[1693480404126,0.101,1709.4,1709.3,20.4336854]
[1693480407024,0.101,1709.4,1709.3,17.56020475]
[1693480407227,1.319,1709.4,1709.3,17.56020475]
[1693480407610,0.7088576,1709.4,1709.3,17.56020475]
[1693480409510,0.7088576,1709.4,1709.3,18.57710626]
[1693480409703,0.7088576,1709.4,1709.3,19.88666414]
[1693480414504,0.7088576,1709.4,1709.3,18.86976263]
[1693480424454,0.7088576,1709.4,1709.3,1.31874263]
[1693480424663,1.49662236,1709.4,1709.3,7.16908263]
[1693480424872,6.5588576,1709.4,1709.3,1.31874263]
[1693480426345,0.7088576,1709.4,1709.3,1.31874263]
[1693480427646,6.5588576,1709.4,1709.3,1.31874263]
[1693480434889,12.4088576,1709.4,1709.3,1.31874263]
[1693480436509,13.93523915,1709.4,1709.3,1.31874263]
[1693480437106,16.04565606,1709.4,1709.3,1.31874263]
[1693480441110,16.04565606,1709.4,1709.3,1.31644227]
[1693480448740,21.89565606,1709.4,1708.9,4.3335]
[1693480448944,21.89565606,1709.4,1708.9,10.18506]
[1693480449119,2.18956561,1709.3,1709.0,0.00631519]
[1693480449321,8.04016561,1709.3,1709.0,0.00631519]
[1693480449521,13.89072561,1709.3,1709.0,5.85758519]
[1693480449728,1.218,1709.1,1709.0,5.85758519]
[1693480449915,1.218,1709.1,1709.0,0.00631519]
[1693480450108,1.924873,1709.1,1709.0,0.00631519]
[1693480451339,1.924873,1709.1,1709.0,5.85768519]
[1693480451911,1.924873,1709.1,1709.0,0.00631519]
[1693480456357,1.924873,1709.1,1709.0,1.09147348]
[1693480461159,7.775903,1709.1,1709.0,1.09147348]
[1693480461368,13.626933,1709.1,1709.0,1.09147348]
[1693480462063,7.775903,1709.1,1709.0,1.09147348]
[1693480463262,13.626933,1709.1,1709.0,1.09147348]
[1693480465532,21.01294007,1709.1,1709.0,1.09147348]
[1693480470165,13.626933,1709.1,1709.0,1.09147348]
[1693480477387,19.477963,1709.1,1709.0,1.09147348]
[1693480488403,21.01256571,1709.1,1709.0,1.09147348]
[1693480490478,21.01256571,1709.1,1709.0,1.04147348]
[1693480490698,21.0134659,1709.1,1709.0,1.04147348]
[1693480491206,21.0134659,1709.1,1709.0,1.04680883]
[1693480505231,19.477963,1709.1,1709.0,1.04680883]
[1693480505411,21.32056649,1709.1,1709.0,1.04680883]
[1693480506330,19.477963,1709.1,1709.0,1.04680883]
[1693480532153,19.477963,1709.1,1709.0,1.04995334]
[1693480555669,22.35144365,1709.1,1709.0,1.04995334]
[1693480555890,27.19511169,1709.1,1709.0,1.04995334]
[1693480556203,27.19511169,1709.1,1708.8,2.4925]
[1693480556204,1.218,1709.0,1708.8,2.4925]
[1693480556385,20.31038878,1708.9,1708.8,2.4925]
[1693480556581,22.75057572,1708.9,1708.8,2.4925]
[1693480561724,21.21331694,1708.9,1708.8,2.4925]
[1693480561917,22.75035944,1708.9,1708.8,2.4925]
[1693480562089,22.75035905,1708.9,1708.8,2.4925]
[1693480566907,23.22283597,1708.9,1708.8,2.4925]
[1693480572501,24.09484416,1708.9,1708.8,2.4925]
[1693480572715,6.53971416,1708.9,1708.8,2.4925]
[1693480572917,20.11761511,1708.9,1708.8,2.4925]
[1693480573120,21.65372574,1708.9,1708.8,2.4925]
[1693480588952,21.65372574,1708.9,1708.5,2.496]
[1693480589547,21.65372574,1708.9,1708.6,1.04378491]
[1693480590045,21.65372574,1708.9,1708.7,0.00691304]
[1693480590351,2.16537257,1708.8,1708.7,0.00691304]
[1693480590528,19.72152257,1708.8,1708.7,0.00691304]
[1693480591316,23.93952257,1708.8,1708.5,2.496]
[1693480591574,1.218,1708.6,1708.5,2.496]
[1693480591850,18.77622,1708.6,1708.5,2.496]
[1693480592016,21.10745903,1708.6,1708.5,2.496]
[1693480592218,21.10745903,1708.6,1708.5,2.50210625]
[1693480604488,21.10745903,1708.6,1708.5,3.48606677]
[1693480605883,21.58399272,1708.6,1708.5,3.48606677]
[1693480606284,22.46808813,1708.6,1708.5,3.48606677]
[1693480634323,24.00425839,1708.6,1708.5,3.48606677]
[1693480652570,21.67301936,1708.6,1708.5,3.48606677]
[1693480654266,15.82027936,1708.6,1708.5,3.48606677]
[1693480662897,21.67301936,1708.6,1708.5,3.48606677]
[1693480663897,20.78892395,1708.6,1708.5,3.48606677]
[1693480666102,19.25275369,1708.6,1708.5,3.48606677]
[1693480672478,7.54727369,1708.6,1708.5,3.48606677]
[1693480672707,1.69453369,1708.6,1708.5,3.48606677]
[1693480673015,1.69453369,1708.6,1708.5,3.83467345]
[1693480676600,1.69453369,1708.6,1708.5,9.68775345]
[1693480676800,1.69453369,1708.6,1708.5,3.83467345]
[1693480680218,1.218,1708.6,1708.5,3.83467345]
[1693480683821,1.218,1708.6,1708.5,6.73467345]
[1693480700351,7.54256604,1708.7,1708.5,6.73467345]
[1693480700721,1.69014604,1708.7,1708.5,6.73467345]
[1693480701724,1.69014604,1708.7,1708.5,12.58771345]
[1693480701925,1.69014604,1708.7,1708.6,1.25877135]
[1693480702257,1.69014604,1708.7,1708.6,2.24691809]
[1693480712628,1.218,1708.7,1708.6,8.09965809]
[1693480720686,1.218,1708.7,1708.6,2.24691809]
[1693480723450,1.218,1708.7,1708.6,0.98814674]
[1693480802145,1.218,1708.7,1708.6,9.71436739]
[1693480802348,0.47247692,1708.9,1708.6,22.43698714]
[1693480802650,1.218,1709.2,1708.8,17.55564]
[1693480802812,41.71447179,1709.4,1708.8,17.55564]
[1693480802813,37.40166976,1709.4,1709.0,17.5536]
[1693480803013,6.05434179,1709.4,1709.0,20.42708065]
[1693480803324,7.27234179,1709.4,1709.2,11.70138]
[1693480803760,6.05434179,1709.4,1709.2,17.33456065]
[1693480804221,0.101,1709.5,1709.2,23.18525065]
[1693480804423,0.101,1709.5,1709.3,1.04195768]
[1693480804657,0.101,1709.5,1709.4,5.85]
[1693480806723,0.101,1709.5,1709.3,12.74237768]
[1693480807324,0.101,1709.5,1709.4,0.006039]
[1693480808325,0.101,1709.5,1709.3,12.74237768]
[1693480808531,0.101,1709.5,1709.4,1.27423777]
[1693480809759,0.101,1709.5,1709.4,4.17423777]
[1693480811352,0.101,1709.5,1709.4,4.18027677]
[1693480813922,0.101,1709.5,1709.4,10.03027677]
[1693480814121,0.101,1709.5,1709.4,15.88027677]
[1693480814329,0.101,1709.5,1709.4,21.73027677]
[1693480814758,0.101,1709.5,1709.4,22.7108168]
[1693480815257,0.101,1709.5,1709.4,25.58429745]
[1693480822253,0.101,1709.5,1709.4,28.58429745]
[1693480825683,0.1044514,1709.6,1709.4,28.58429745]
[1693480825886,0.1044514,1709.6,1709.5,4.39676456]
[1693480826086,0.1044514,1709.6,1709.5,25.42574456]
[1693480826278,0.1044514,1709.6,1709.5,26.44839883]
[1693480826279,1e-08,1709.6,1709.5,26.44839883]
[1693480826486,0.101,1710.1,1709.5,26.44839883]
[1693480826487,0.101,1710.1,1709.8,3.0]
[1693480826790,0.101,1710.1,1710.0,17.54385]
[1693480826987,0.101,1710.1,1710.0,27.69156842]
[1693480827151,1.319,1710.4,1710.0,27.69156842]
[1693480827359,0.0042376,1710.6,1710.4,3.0]
[1693480827593,0.101,1711.3,1710.6,3.0]
[1693480827891,6.70769858,1712.2,1710.6,3.0]
[1693480827892,0.61049456,1713.4,1712.3,3.517]
[1693480828097,4.57624105,1714.0,1712.7,3.0]
[1693480828098,4.47624105,1714.0,1712.7,3.0]
[1693480828303,5.58401204,1714.7,1713.9,17.50362]
[1693480828518,5.58401204,1714.7,1714.4,3.0]
[1693480828669,5.58401204,1714.7,1714.2,23.33439]
[1693480828670,11.0988128,1716.0,1714.8,5.83155]
[1693480828671,2.22530923,1716.0,1714.8,5.83155]
[1693480828870,2.22530923,1716.0,1714.2,11.76]
[1693480828871,1.9290077,1717.1,1715.1,34.9821]
[1693480829068,1.9290077,1717.1,1715.3,11.76]
[1693480829069,6.0,1716.7,1715.3,11.76]
[1693480829264,6.0,1716.3,1714.9,5.71564065]
[1693480829507,6.0,1715.2,1715.1,3.515]
[1693480829697,5.82787,1715.9,1715.1,3.515]
[1693480829881,11.66044,1715.2,1714.4,0.76144486]
[1693480830075,2.4135,1714.8,1714.4,0.76144486]
[1693480830287,3.0,1715.4,1714.1,0.58463883]
[1693480830288,5.82982,1715.4,1715.3,1.52430721]
[1693480830487,5.82982,1715.4,1715.1,4.94180747]
[1693480830488,6.34582619,1715.4,1715.1,6.78065828]
[1693480830702,2.436,1716.5,1715.7,9.0]
[1693480830903,5.82476,1716.9,1715.8,14.88155643]
[1693480831108,11.65114,1716.6,1715.8,14.88155643]
[1693480831294,0.0425,1717.7,1715.8,14.88155643]
[1693480831295,0.17837089,1717.5,1715.8,11.88155643]